fUST/lending_fUST_20250221
["ID","MTS","AMOUNT","RATE_DAILY","PERIOD"]
[353858121,1740097841839,-500.0,0.0001378,2]
[353858122,1740097841848,-17350.12,0.0001378,2]
[353858123,1740097841857,-500.0,0.0001378,2]
[353858124,1740097841869,-873.49,0.0001378,2]
[353858125,1740097841878,-500.0,0.0001378,2]
[353858126,1740097841888,-500.0,0.0001378,2]
[353858127,1740097841897,-500.0,0.0001378,2]
[353858128,1740097841906,-567.85,0.0001378,2]
[353858129,1740097841915,-500.0,0.0001378,2]
[353858130,1740097841923,-500.0,0.0001378,2]
[353858131,1740097841932,-2112.09,0.0001378,2]
[353858132,1740097841941,-500.0,0.0001378,2]
[353858133,1740097841949,-500.0,0.0001378,2]
[353858134,1740097841958,-528.95,0.0001378,2]
[353858135,1740097841968,-2172.75,0.0001378,2]
[353858136,1740097841978,-500.0,0.0001378,2]
[353858137,1740097841987,-1606.58,0.0001378,2]
[353858138,1740097841997,-3000.0,0.00013845,2]
[353858139,1740097842006,-1248.90148633,0.00013845,2]
[353858140,1740097842018,-500.0,0.00013863,2]
[353858141,1740097842027,-500.0,0.00013863,2]
[353858142,1740097842036,-500.0,0.00013863,2]
[353858143,1740097842045,-500.0,0.00013863,2]
[353858144,1740097842054,-512.02,0.00013863,2]
[353858145,1740097842063,-500.0,0.00013863,2]
[353858146,1740097842072,-500.0,0.00013863,2]
[353858147,1740097842082,-500.0,0.00013863,2]
[353858148,1740097842091,-500.0,0.00013863,2]
[353858149,1740097842100,-500.0,0.00013863,2]
[353858150,1740097842109,-720.25,0.00013863,2]
[353858151,1740097842118,-924.56,0.00013863,2]
[353858152,1740097842127,-500.0,0.00013863,2]
[353858153,1740097842136,-608.05,0.00013863,2]
[353858154,1740097842145,-659.25,0.00013863,2]
[353858155,1740097842154,-500.0,0.00013863,2]
[353858156,1740097842163,-1112.77,0.00013863,2]
[353858157,1740097842172,-500.0,0.00013863,2]
[353858158,1740097842181,-620.25,0.00013863,2]
[353858159,1740097842190,-575.32,0.00013863,2]
[353858160,1740097842198,-500.0,0.00013863,2]
[353858161,1740097842207,-500.0,0.00013863,2]
[353858162,1740097842216,-1226.4,0.00013863,2]
[353858163,1740097842224,-500.0,0.00013863,2]
[353858164,1740097842234,-500.0,0.00013863,2]
[353858165,1740097842243,-631.47,0.00013863,2]
[353858166,1740097842252,-616.91,0.00013863,2]
[353858167,1740097842260,-500.0,0.00013863,2]
[353858168,1740097842269,-757.01,0.00013863,2]
[353858169,1740097842278,-612.09,0.00013863,2]
[353858170,1740097842287,-1173.26,0.00013863,2]
[353858171,1740097842296,-500.0,0.00013863,2]
[353858172,1740097842305,-571.2,0.00013863,2]
[353858173,1740097842313,-500.0,0.00013863,2]
[353858174,1740097842323,-863.93,0.00013863,2]
[353858175,1740097842332,-500.0,0.00013863,2]
[353858176,1740097842340,-500.0,0.00013863,2]
[353858177,1740097842348,-500.0,0.00013863,2]
[353858178,1740097842355,-773.51,0.00013863,2]
[353858179,1740097842362,-500.0,0.00013863,2]
[353858180,1740097842371,-500.0,0.00013863,2]
[353858181,1740097842380,-563.79,0.00013863,2]
[353858182,1740097842389,-500.0,0.00013863,2]
[353858183,1740097842398,-500.0,0.00013863,2]
[353858184,1740097842407,-500.0,0.00013863,2]
[353858185,1740097842417,-870.26,0.00013863,2]
[353858186,1740097842426,-500.0,0.00013863,2]
[353858187,1740097842436,-500.0,0.00013863,2]
[353858188,1740097842445,-500.0,0.00013863,2]
[353858189,1740097842455,-500.0,0.00013863,2]
[353858190,1740097842464,-500.0,0.00013863,2]
[353858191,1740097842474,-1000.0,0.00013863,2]
[353858192,1740097842483,-2965.2,0.00013863,2]
[353858193,1740097842492,-500.0,0.00013863,2]
[353858194,1740097842501,-7407.22,0.00013863,2]
[353858195,1740097842510,-1424.63,0.00013863,2]
[353858196,1740097842520,-1126.5,0.00013863,2]
[353858197,1740097842529,-1088.81,0.00013863,2]
[353858198,1740097842539,-3319.91,0.00013863,2]
[353858199,1740097842548,-13071.21,0.00013863,2]
[353858200,1740097842557,-500.0,0.00013863,2]
[353858201,1740097842566,-500.0,0.00013863,2]
[353858202,1740097842575,-36691.61,0.00013863,2]
[353858203,1740097842584,-757.95,0.00013863,2]
[353858204,1740097842593,-2493.87,0.00013863,2]
[353858205,1740097842602,-1170.19,0.00013863,2]
[353858206,1740097842611,-1893.62,0.00013863,2]
[353858207,1740097842619,-1493.72,0.00013863,2]
[353858208,1740097842628,-3206.01,0.00013863,2]
[353858209,1740097842636,-500.0,0.00013863,2]
[353858210,1740097842645,-619.03,0.00013863,2]
[353858211,1740097842653,-1288.47,0.00013863,2]
[353858212,1740097842662,-6326.14,0.00013863,2]
[353858213,1740097842671,-1250.47,0.00013863,2]
[353858214,1740097842680,-500.0,0.00013863,2]
[353858215,1740097842689,-530.98,0.00013863,2]
[353858216,1740097842698,-500.0,0.00013863,2]
[353858217,1740097842706,-3591.47,0.00013863,2]
[353858218,1740097842715,-500.0,0.00013863,2]
[353858219,1740097842723,-1996.0,0.00013863,2]
[353858220,1740097842732,-3522.52,0.00013863,2]
[353858221,1740097842741,-584.09,0.00013863,2]
[353858222,1740097842750,-1282.81,0.00013863,2]
[353858223,1740097842759,-500.0,0.00013863,2]
[353858224,1740097842769,-682.12,0.00013863,2]
[353858225,1740097842778,-1084.12,0.00013863,2]
[353858226,1740097842786,-2053.02,0.00013863,2]
[353858227,1740097842795,-500.0,0.00013863,2]
[353858228,1740097842804,-855.35,0.00013863,2]
[353858229,1740097842814,-657.23,0.00013863,2]
[353858230,1740097842825,-2085.88,0.00013863,2]
[353858231,1740097842834,-2400.28,0.00013863,2]
[353858232,1740097842843,-550.36,0.00013863,2]
[353858233,1740097842851,-500.0,0.00013863,2]
[353858234,1740097842861,-500.0,0.00013863,2]
[353858235,1740097842870,-500.0,0.00013863,2]
[353858236,1740097842879,-755.6,0.00013863,2]
[353858237,1740097842888,-500.0,0.00013863,2]
[353858238,1740097842897,-2528.55,0.00013863,2]
[353858239,1740097842908,-5873.51,0.00013863,2]
[353858240,1740097842918,-1871.42,0.00013863,2]
[353858241,1740097842926,-17350.12,0.00013863,2]
[353858242,1740097842935,-500.0,0.00013863,2]
[353858243,1740097842944,-873.49,0.00013863,2]
[353858244,1740097842951,-500.0,0.00013863,2]
[353858245,1740097842959,-500.0,0.00013863,2]
[353858247,1740097842965,-500.0,0.00013863,2]
[353858248,1740097842974,-567.85,0.00013863,2]
[353858249,1740097842981,-511.50051567,0.00013863,2]
[353858250,1740097842988,-500.0,0.00013863,2]
[353858251,1740097842995,-2112.09,0.00013863,2]
[353858252,1740097843004,-500.0,0.00013863,2]
[353858253,1740097843013,-528.95,0.00013863,2]
[353858255,1740097843023,-2172.75,0.00013863,2]
[353858256,1740097843032,-500.0,0.00013863,2]
[353858257,1740097843042,-1606.58,0.00013863,2]
[353858258,1740097843052,-210.98575484,0.00013945,2]
[353858259,1740097843061,-500.0,0.00013945,2]
[353858260,1740097843070,-370.32730835,0.00013945,2]
[353858261,1740097843079,-500.0,0.00013945,2]
[353858262,1740097843088,-512.02,0.00013945,2]
[353858263,1740097843098,-500.0,0.00013945,2]
[353858264,1740097843107,-500.0,0.00013945,2]
[353858265,1740097843115,-500.0,0.00013945,2]
[353858266,1740097843124,-500.0,0.00013945,2]
[353858267,1740097843133,-500.0,0.00013945,2]
[353858268,1740097843142,-720.25,0.00013945,2]
[353858269,1740097843151,-924.56,0.00013945,2]
[353858270,1740097843161,-500.0,0.00013945,2]
[353858271,1740097843170,-608.05,0.00013945,2]
[353858272,1740097843179,-659.25,0.00013945,2]
[353858273,1740097843188,-500.0,0.00013945,2]
[353858274,1740097843197,-1112.77,0.00013945,2]
[353858275,1740097843205,-500.0,0.00013945,2]
[353858276,1740097843215,-620.25,0.00013945,2]
[353858277,1740097843224,-575.32,0.00013945,2]
[353858278,1740097843234,-500.0,0.00013945,2]
[353858280,1740097843243,-500.0,0.00013945,2]
[353858282,1740097843252,-1226.4,0.00013945,2]
[353858283,1740097843262,-500.0,0.00013945,2]
[353858284,1740097843271,-500.0,0.00013945,2]
[353858286,1740097843280,-631.47,0.00013945,2]
[353858288,1740097843289,-616.91,0.00013945,2]
[353858289,1740097843298,-500.0,0.00013945,2]
[353858291,1740097843307,-757.01,0.00013945,2]
[353858292,1740097843316,-612.09,0.00013945,2]
[353858293,1740097843326,-1173.26,0.00013945,2]
[353858294,1740097843334,-500.0,0.00013945,2]
[353858295,1740097843342,-571.2,0.00013945,2]
[353858296,1740097843351,-500.0,0.00013945,2]
[353858297,1740097843361,-863.93,0.00013945,2]
[353858298,1740097843371,-500.0,0.00013945,2]
[353858299,1740097843380,-500.0,0.00013945,2]
[353858300,1740097843390,-500.0,0.00013945,2]
[353858302,1740097843399,-773.51,0.00013945,2]
[353858303,1740097843407,-500.0,0.00013945,2]
[353858304,1740097843416,-500.0,0.00013945,2]
[353858305,1740097843425,-563.79,0.00013945,2]
[353858306,1740097843434,-500.0,0.00013945,2]
[353858307,1740097843443,-500.0,0.00013945,2]
[353858308,1740097843452,-500.0,0.00013945,2]
[353858309,1740097843461,-870.26,0.00013945,2]
[353858310,1740097843470,-500.0,0.00013945,2]
[353858311,1740097843479,-500.0,0.00013945,2]
[353858312,1740097843489,-500.0,0.00013945,2]
[353858313,1740097843498,-500.0,0.00013945,2]
[353858314,1740097843506,-500.0,0.00013945,2]
[353858315,1740097843516,-1000.0,0.00013945,2]
[353858316,1740097843524,-2965.2,0.00013945,2]
[353858317,1740097843534,-500.0,0.00013945,2]
[353858318,1740097843542,-7407.22,0.00013945,2]
[353858319,1740097843552,-1424.63,0.00013945,2]
[353858320,1740097843566,-1126.5,0.00013945,2]
[353858321,1740097843575,-1088.81,0.00013945,2]
[353858322,1740097843584,-3319.91,0.00013945,2]
[353858323,1740097843593,-13071.21,0.00013945,2]
[353858324,1740097843602,-500.0,0.00013945,2]
[353858325,1740097843611,-500.0,0.00013945,2]
[353858326,1740097843620,-36691.61,0.00013945,2]
[353858327,1740097843628,-757.95,0.00013945,2]
[353858328,1740097843639,-2493.87,0.00013945,2]
[353858329,1740097843647,-1170.19,0.00013945,2]
[353858330,1740097843656,-1893.62,0.00013945,2]
[353858331,1740097843666,-1493.72,0.00013945,2]
[353858332,1740097843676,-3206.01,0.00013945,2]
[353858333,1740097843685,-500.0,0.00013945,2]
[353858334,1740097843695,-619.03,0.00013945,2]
[353858335,1740097843704,-1288.47,0.00013945,2]
[353858336,1740097843714,-6326.14,0.00013945,2]
[353858337,1740097843725,-1250.47,0.00013945,2]
[353858338,1740097843736,-500.0,0.00013945,2]
[353858339,1740097843746,-530.98,0.00013945,2]
[353858340,1740097843756,-500.0,0.00013945,2]
[353858341,1740097843767,-3591.47,0.00013945,2]
[353858342,1740097843776,-500.0,0.00013945,2]
[353858343,1740097843786,-1996.0,0.00013945,2]
[353858344,1740097843795,-3522.52,0.00013945,2]
[353858345,1740097843804,-584.09,0.00013945,2]
[353858346,1740097843813,-1282.81,0.00013945,2]
[353858347,1740097843822,-500.0,0.00013945,2]
[353858348,1740097843837,-682.12,0.00013945,2]
[353858349,1740097843846,-1084.12,0.00013945,2]
[353858350,1740097843855,-2053.02,0.00013945,2]
[353858351,1740097843864,-500.0,0.00013945,2]
[353858352,1740097843874,-855.35,0.00013945,2]
[353858353,1740097843883,-657.23,0.00013945,2]
[353858354,1740097843892,-2085.88,0.00013945,2]
[353858355,1740097843901,-2400.28,0.00013945,2]
[353858356,1740097843912,-550.36,0.00013945,2]
[353858357,1740097843922,-500.0,0.00013945,2]
[353858358,1740097843931,-500.0,0.00013945,2]
[353858359,1740097843940,-500.0,0.00013945,2]
[353858360,1740097843950,-755.6,0.00013945,2]
[353858361,1740097843959,-500.0,0.00013945,2]
[353858362,1740097843967,-2528.55,0.00013945,2]
[353858363,1740097843976,-5873.51,0.00013945,2]
[353858364,1740097843985,-1871.42,0.00013945,2]
[353858365,1740097843995,-17350.12,0.00013945,2]
[353858366,1740097844104,-500.0,0.00013945,2]
[353858367,1740097844114,-873.49,0.00013945,2]
[353858368,1740097844123,-500.0,0.00013945,2]
[353858369,1740097844131,-500.0,0.00013945,2]
[353858370,1740097844140,-500.0,0.00013945,2]
[353858371,1740097844149,-567.85,0.00013945,2]
[353858372,1740097844158,-500.0,0.00013945,2]
[353858373,1740097844167,-2112.09,0.00013945,2]
[353858374,1740097844176,-500.0,0.00013945,2]
[353858375,1740097844186,-528.95,0.00013945,2]
[353858376,1740097844195,-2172.75,0.00013945,2]
[353858377,1740097844205,-500.0,0.00013945,2]
[353858378,1740097844214,-1606.58,0.00013945,2]
[353858379,1740097844223,-1326.06952952,0.00013971,2]
[353858380,1740097844232,-500.0,0.00014027,2]
[353858381,1740097844242,-254.68426012,0.00014027,2]
[353858382,1740097844252,-512.02,0.00014027,2]
[353858383,1740097844263,-500.0,0.00014027,2]
[353858384,1740097844273,-242.45975678,0.00014027,2]
[353858385,1740097844282,-500.0,0.00014027,2]
[353858386,1740097844292,-500.0,0.00014027,2]
[353858387,1740097844302,-500.0,0.00014027,2]
[353858388,1740097844312,-720.25,0.00014027,2]
[353858389,1740097844321,-924.56,0.00014027,2]
[353858390,1740097844331,-500.0,0.00014027,2]
[353858391,1740097844340,-608.05,0.00014027,2]
[353858392,1740097844350,-659.25,0.00014027,2]
[353858393,1740097844359,-500.0,0.00014027,2]
[353858394,1740097844369,-1112.77,0.00014027,2]
[353858395,1740097844378,-500.0,0.00014027,2]
[353858396,1740097844390,-620.25,0.00014027,2]
[353858397,1740097844399,-575.32,0.00014027,2]
[353858398,1740097844409,-500.0,0.00014027,2]
[353858399,1740097844419,-500.0,0.00014027,2]
[353858400,1740097844428,-1226.4,0.00014027,2]
[353858401,1740097844437,-500.0,0.00014027,2]
[353858402,1740097844447,-500.0,0.00014027,2]
[353858403,1740097844457,-631.47,0.00014027,2]
[353858404,1740097844466,-616.91,0.00014027,2]
[353858405,1740097844476,-500.0,0.00014027,2]
[353858406,1740097844486,-757.01,0.00014027,2]
[353858407,1740097844498,-612.09,0.00014027,2]
[353858408,1740097844507,-1173.26,0.00014027,2]
[353858409,1740097844516,-500.0,0.00014027,2]
[353858410,1740097844526,-571.2,0.00014027,2]
[353858411,1740097844536,-500.0,0.00014027,2]
[353858412,1740097844545,-863.93,0.00014027,2]
[353858413,1740097844555,-500.0,0.00014027,2]
[353858414,1740097844564,-500.0,0.00014027,2]
[353858415,1740097844574,-500.0,0.00014027,2]
[353858416,1740097844583,-773.51,0.00014027,2]
[353858417,1740097844592,-500.0,0.00014027,2]
[353858418,1740097844603,-500.0,0.00014027,2]
[353858419,1740097844613,-563.79,0.00014027,2]
[353858420,1740097844622,-500.0,0.00014027,2]
[353858421,1740097844631,-500.0,0.00014027,2]
[353858422,1740097844641,-429.67719466,0.00014027,2]
[353858423,1740097844651,-870.26,0.00014027,2]
[353858424,1740097844659,-500.0,0.00014027,2]
[353858425,1740097844669,-500.0,0.00014027,2]
[353858426,1740097844678,-500.0,0.00014027,2]
[353858427,1740097844687,-500.0,0.00014027,2]
[353858428,1740097844697,-500.0,0.00014027,2]
[353858429,1740097844706,-1000.0,0.00014027,2]
[353858430,1740097844714,-2965.2,0.00014027,2]
[353858431,1740097844724,-500.0,0.00014027,2]
[353858432,1740097844733,-7407.22,0.00014027,2]
[353858433,1740097844742,-1424.63,0.00014027,2]
[353858434,1740097844751,-1126.5,0.00014027,2]
[353858435,1740097844760,-1088.81,0.00014027,2]
[353858436,1740097844769,-3319.91,0.00014027,2]
[353858437,1740097844778,-13071.21,0.00014027,2]
[353858438,1740097844787,-500.0,0.00014027,2]
[353858439,1740097844798,-500.0,0.00014027,2]
[353858440,1740097844807,-36691.61,0.00014027,2]
[353858441,1740097844816,-757.95,0.00014027,2]
[353858442,1740097844827,-2493.87,0.00014027,2]
[353858443,1740097844838,-1170.19,0.00014027,2]
[353858444,1740097844849,-1893.62,0.00014027,2]
[353858445,1740097844858,-1493.72,0.00014027,2]
[353858446,1740097844869,-3206.01,0.00014027,2]
[353858447,1740097844878,-500.0,0.00014027,2]
[353858448,1740097844887,-619.03,0.00014027,2]
[353858449,1740097844896,-1288.47,0.00014027,2]
[353858450,1740097844906,-6326.14,0.00014027,2]
[353858451,1740097844916,-1250.47,0.00014027,2]
[353858452,1740097844926,-500.0,0.00014027,2]
[353858453,1740097844935,-530.98,0.00014027,2]
[353858454,1740097844944,-500.0,0.00014027,2]
[353858455,1740097844954,-3591.47,0.00014027,2]
[353858456,1740097844963,-500.0,0.00014027,2]
[353858457,1740097844972,-1996.0,0.00014027,2]
[353858458,1740097844981,-3522.52,0.00014027,2]
[353858459,1740097844990,-584.09,0.00014027,2]
[353858460,1740097844999,-1282.81,0.00014027,2]
[353858461,1740097845011,-500.0,0.00014027,2]
[353858462,1740097845019,-682.12,0.00014027,2]
[353858463,1740097845029,-1084.12,0.00014027,2]
[353858464,1740097845038,-2053.02,0.00014027,2]
[353858465,1740097845048,-500.0,0.00014027,2]
[353858466,1740097845057,-855.35,0.00014027,2]
[353858467,1740097845066,-657.23,0.00014027,2]
[353858468,1740097845076,-2085.88,0.00014027,2]
[353858469,1740097845085,-2400.28,0.00014027,2]
[353858470,1740097845095,-550.36,0.00014027,2]
[353858471,1740097845105,-500.0,0.00014027,2]
[353858472,1740097845115,-619.18273082,0.00014027,2]
[353858473,1740097845125,-755.6,0.00014027,2]
[353858474,1740097845134,-500.0,0.00014027,2]
[353858475,1740097845144,-2528.55,0.00014027,2]
[353858476,1740097845153,-5873.51,0.00014027,2]
[353858477,1740097845163,-1871.42,0.00014027,2]
[353858478,1740097845172,-17350.12,0.00014027,2]
[353858479,1740097845182,-500.0,0.00014027,2]
[353858480,1740097845192,-873.49,0.00014027,2]
[353858481,1740097845202,-500.0,0.00014027,2]
[353858482,1740097845211,-500.0,0.00014027,2]
[353858483,1740097845222,-500.0,0.00014027,2]
[353858484,1740097845233,-567.85,0.00014027,2]
[353858485,1740097845242,-500.0,0.00014027,2]
[353858486,1740097845252,-2112.09,0.00014027,2]
[353858487,1740097845263,-500.0,0.00014027,2]
[353858488,1740097845273,-528.95,0.00014027,2]
[353858489,1740097845283,-2172.75,0.00014027,2]
[353858490,1740097845294,-500.0,0.00014027,2]
[353858491,1740097845304,-1606.58,0.00014027,2]
[353858492,1740097845313,-2246.54732415,0.00014091,2]
[353858493,1740097845323,-500.0,0.00014109,2]
[353858494,1740097845333,-512.02,0.00014109,2]
[353858495,1740097845343,-500.0,0.00014109,2]
[353858496,1740097845353,-500.0,0.00014109,2]
[353858497,1740097845363,-500.0,0.00014109,2]
[353858498,1740097845373,-720.25,0.00014109,2]
[353858499,1740097845383,-924.56,0.00014109,2]
[353858500,1740097845394,-500.0,0.00014109,2]
[353858501,1740097845404,-608.05,0.00014109,2]
[353858502,1740097845413,-659.25,0.00014109,2]
[353858503,1740097845423,-500.0,0.00014109,2]
[353858504,1740097845432,-1112.77,0.00014109,2]
[353858505,1740097845442,-460.55664343,0.00014109,2]
[353858506,1740097845452,-620.25,0.00014109,2]
[353858507,1740097845462,-575.32,0.00014109,2]
[353858508,1740097845472,-330.96217767,0.00014109,2]
[353858509,1740097845482,-500.0,0.00014109,2]
[353858510,1740097845492,-1226.4,0.00014109,2]
[353858511,1740097845502,-500.0,0.00014109,2]
[353858512,1740097845512,-500.0,0.00014109,2]
[353858513,1740097845521,-631.47,0.00014109,2]
[353858514,1740097845530,-616.91,0.00014109,2]
[353858515,1740097845539,-500.0,0.00014109,2]
[353858516,1740097845549,-757.01,0.00014109,2]
[353858517,1740097845559,-612.09,0.00014109,2]
[353858518,1740097845568,-1173.26,0.00014109,2]
[353858519,1740097845578,-500.0,0.00014109,2]
[353858520,1740097845588,-571.2,0.00014109,2]
[353858521,1740097845598,-500.0,0.00014109,2]
[353858522,1740097845607,-863.93,0.00014109,2]
[353858523,1740097845617,-500.0,0.00014109,2]
[353858524,1740097845627,-500.0,0.00014109,2]
[353858525,1740097845636,-500.0,0.00014109,2]
[353858526,1740097845647,-773.51,0.00014109,2]
[353858527,1740097845656,-500.0,0.00014109,2]
[353858528,1740097845666,-500.0,0.00014109,2]
[353858529,1740097845676,-563.79,0.00014109,2]
[353858530,1740097845686,-500.0,0.00014109,2]
[353858531,1740097845695,-208.89385453,0.00014109,2]
[353858532,1740097845704,-870.26,0.00014109,2]
[353858533,1740097845715,-500.0,0.00014109,2]
[353858534,1740097845725,-500.0,0.00014109,2]
[353858535,1740097845734,-500.0,0.00014109,2]
[353858536,1740097845744,-500.0,0.00014109,2]
[353858537,1740097845754,-500.0,0.00014109,2]
[353858538,1740097845764,-1000.0,0.00014109,2]
[353858539,1740097845774,-2965.2,0.00014109,2]
[353858540,1740097845784,-500.0,0.00014109,2]
[353858541,1740097845794,-7407.22,0.00014109,2]
[353858542,1740097845804,-1424.63,0.00014109,2]
[353858543,1740097845813,-1126.5,0.00014109,2]
[353858544,1740097845822,-1088.81,0.00014109,2]
[353858545,1740097845835,-3319.91,0.00014109,2]
[353858546,1740097845844,-13071.21,0.00014109,2]
[353858547,1740097845853,-500.0,0.00014109,2]
[353858548,1740097845863,-500.0,0.00014109,2]
[353858549,1740097845872,-36691.61,0.00014109,2]
[353858550,1740097845881,-757.95,0.00014109,2]
[353858551,1740097845890,-2493.87,0.00014109,2]
[353858552,1740097845899,-1170.19,0.00014109,2]
[353858553,1740097845909,-1893.62,0.00014109,2]
[353858554,1740097845919,-1493.72,0.00014109,2]
[353858555,1740097845928,-3206.01,0.00014109,2]
[353858556,1740097845938,-619.03,0.00014109,2]
[353858557,1740097845947,-1288.47,0.00014109,2]
[353858558,1740097845957,-6326.14,0.00014109,2]
[353858559,1740097845967,-1250.47,0.00014109,2]
[353858560,1740097845976,-500.0,0.00014109,2]
[353858561,1740097845986,-530.98,0.00014109,2]
[353858562,1740097845996,-500.0,0.00014109,2]
[353858563,1740097846006,-3591.47,0.00014109,2]
[353858564,1740097846016,-500.0,0.00014109,2]
[353858565,1740097846026,-1996.0,0.00014109,2]
[353858566,1740097846036,-3522.52,0.00014109,2]
[353858568,1740097846046,-584.09,0.00014109,2]
[353858569,1740097846055,-1282.81,0.00014109,2]
[353858570,1740097846065,-500.0,0.00014109,2]
[353858571,1740097846076,-682.12,0.00014109,2]
[353858572,1740097846087,-1084.12,0.00014109,2]
[353858573,1740097846096,-2053.02,0.00014109,2]
[353858574,1740097846105,-500.0,0.00014109,2]
[353858575,1740097846114,-855.35,0.00014109,2]
[353858577,1740097846124,-657.23,0.00014109,2]
[353858578,1740097846133,-2085.88,0.00014109,2]
[353858579,1740097846143,-2400.28,0.00014109,2]
[353858580,1740097846152,-550.36,0.00014109,2]
[353858581,1740097846161,-500.0,0.00014109,2]
[353858582,1740097846171,-755.6,0.00014109,2]
[353858584,1740097846180,-500.0,0.00014109,2]
[353858586,1740097846190,-2528.55,0.00014109,2]
[353858588,1740097846199,-5873.51,0.00014109,2]
[353858589,1740097846208,-1871.42,0.00014109,2]
[353858591,1740097846217,-17350.12,0.00014109,2]
[353858593,1740097846226,-500.0,0.00014109,2]
[353858595,1740097846235,-873.49,0.00014109,2]
[353858597,1740097846244,-500.0,0.00014109,2]
[353858608,1740097846343,-500.0,0.00014109,2]
[353858610,1740097846352,-500.0,0.00014109,2]
[353858612,1740097846362,-567.85,0.00014109,2]
[353858614,1740097846372,-500.0,0.00014109,2]
[353858616,1740097846381,-2112.09,0.00014109,2]
[353858618,1740097846391,-500.0,0.00014109,2]
[353858620,1740097846400,-528.95,0.00014109,2]
[353858622,1740097846410,-2172.75,0.00014109,2]
[353858625,1740097846420,-500.0,0.00014109,2]
[353858627,1740097846430,-1606.58,0.00014109,2]
[353858629,1740097846439,-7438.69753278,0.00014143,2]
[353858631,1740097846449,-600.0,0.00014164,2]
[353858632,1740097846459,-500.0,0.00014173,2]
[353858634,1740097846469,-500.0,0.00014173,2]
[353858636,1740097846479,-156.63025775,0.00014173,2]
[353858638,1740097846489,-500.0,0.00014173,2]
[353858639,1740097846498,-500.0,0.00014173,2]
[353858641,1740097846507,-416.79402787,0.00014173,2]
[353858643,1740097846517,-162.97630381,0.00014173,2]
[353858645,1740097846526,-504.86614696,0.00014173,2]
[353858647,1740097846535,-500.0,0.00014173,2]
[353858648,1740097846544,-500.0,0.00014173,2]
[353858650,1740097846554,-500.0,0.00014173,2]
[353858651,1740097846563,-500.0,0.00014173,2]
[353858653,1740097846573,-500.0,0.00014173,2]
[353858655,1740097846584,-500.0,0.00014173,2]
[353858657,1740097846595,-500.0,0.00014173,2]
[353858659,1740097846609,-500.0,0.00014173,2]
[353858661,1740097846621,-500.0,0.00014173,2]
[353858662,1740097846631,-500.0,0.00014173,2]
[353858663,1740097846640,-500.67238242,0.00014173,2]
[353858664,1740097846649,-500.0,0.00014173,2]
[353858665,1740097846658,-500.0,0.00014173,2]
[353858666,1740097846668,-500.0,0.00014173,2]
[353858667,1740097846677,-500.0,0.00014173,2]
[353858668,1740097846686,-500.33894546,0.00014173,2]
[353858669,1740097846696,-500.0,0.00014173,2]
[353858670,1740097846705,-250.76985661,0.00014173,2]
[353858671,1740097846714,-500.0,0.00014173,2]
[353858672,1740097846722,-500.0,0.00014173,2]